[Event "Live Chess"]
[Site "Chess.com"]
[Date "2023.05.21"]
[Round "-"]
[White "Alfiedog12"]
[Black "BillythekidFellowes"]
[Result "0-1"]
[WhiteElo "870"]
[BlackElo "2124"]
[TimeControl "300"]
[EndTime "8:27:49 PDT"]
[Termination "BillythekidFellowes won by resignation"]

1. d4 {[%clk 0:04:56.8]} 1... e6 {[%clk 0:04:59.9]} 2. Nf3 {[%clk 0:04:55.8]}
2... c5 {[%clk 0:04:59.4]} 3. c3 {[%clk 0:04:53.8]} 3... cxd4 {[%clk 0:04:58.9]}
4. Nxd4 {[%clk 0:04:49]} 4... Nc6 {[%clk 0:04:58.8]} 5. Nxc6 {[%clk 0:04:47.4]}
5... bxc6 {[%clk 0:04:58.5]} 6. Bf4 {[%clk 0:04:44.3]} 6... Qb6 {[%clk
0:04:57.6]} 7. Qc2 {[%clk 0:04:42.3]} 7... Bc5 {[%clk 0:04:56.1]} 8. e3 {[%clk
0:04:40.3]} 8... Nf6 {[%clk 0:04:54.4]} 9. Nd2 {[%clk 0:04:34.6]} 9... d5 {[%clk
0:04:53]} 10. Qb3 {[%clk 0:04:26.5]} 10... Bd7 {[%clk 0:04:50.2]} 11. Qxb6
{[%clk 0:04:23.7]} 11... axb6 {[%clk 0:04:50.1]} 12. a4 {[%clk 0:04:21.3]} 12...
b5 {[%clk 0:04:47.7]} 13. a5 {[%clk 0:04:20.5]} 13... b4 {[%clk 0:04:45.4]} 14.
Nb3 {[%clk 0:04:18.2]} 14... Be7 {[%clk 0:04:44.1]} 15. a6 {[%clk 0:04:05.9]}
15... O-O {[%clk 0:04:41.1]} 16. Bd3 {[%clk 0:03:55.9]} 16... c5 {[%clk
0:04:39]} 17. Bc2 {[%clk 0:03:34.4]} 17... c4 {[%clk 0:04:36.9]} 18. Nd4 {[%clk
0:03:29.5]} 18... b3 {[%clk 0:04:35.7]} 19. Bb1 {[%clk 0:03:17.8]} 19... Bc8
{[%clk 0:04:33.8]} 20. a7 {[%clk 0:03:14.9]} 20... Nd7 {[%clk 0:04:32.7]} 21.
Nc6 {[%clk 0:03:10.7]} 21... Bc5 {[%clk 0:04:27.8]} 22. Bc7 {[%clk 0:02:59.8]}
22... Bb7 {[%clk 0:04:22]} 23. Ra4 {[%clk 0:02:28.5]} 23... Bxc6 {[%clk
0:04:05.2]} 24. Ra5 {[%clk 0:02:26.5]} 24... Rxa7 {[%clk 0:04:01.6]} 25. Rxa7
{[%clk 0:02:24.1]} 25... Bxa7 {[%clk 0:04:01.5]} 26. Bd6 {[%clk 0:02:20.4]}
26... Ra8 {[%clk 0:03:59.8]} 27. Kd2 {[%clk 0:02:17.5]} 27... Bc5 {[%clk
0:03:58.9]} 28. Bxc5 {[%clk 0:02:13.3]} 28... Nxc5 {[%clk 0:03:58.8]} 0-1

[Event "Live Chess"]
[Site "Chess.com"]
[Date "2023.05.21"]
[Round "-"]
[White "robotking06"]
[Black "LiamClery2020"]
[Result "0-1"]
[WhiteElo "327"]
[BlackElo "2000"]
[TimeControl "300"]
[EndTime "8:27:58 PDT"]
[Termination "LiamClery2020 won by resignation"]

1. e4 {[%clk 0:04:56.5]} 1... Nf6 {[%clk 0:04:59.4]} 2. e5 {[%clk 0:04:54.9]}
2... Nd5 {[%clk 0:04:53.8]} 3. Bc4 {[%clk 0:04:50.8]} 3... Nb6 {[%clk
0:04:49.5]} 4. Bb5 {[%clk 0:04:38.1]} 4... Nc6 {[%clk 0:04:44]} 5. Nf3 {[%clk
0:04:33.9]} 5... g6 {[%clk 0:04:40.4]} 6. Qe2 {[%clk 0:04:30.4]} 6... Bg7 {[%clk
0:04:37.8]} 7. Qe4 {[%clk 0:04:28.8]} 7... O-O {[%clk 0:04:35.4]} 8. O-O {[%clk
0:04:23]} 8... d5 {[%clk 0:04:33.5]} 9. d3 {[%clk 0:04:22.8]} 9... dxe4 {[%clk
0:04:32.6]} 10. Bh6 {[%clk 0:04:21.8]} 10... Bxh6 {[%clk 0:04:31.1]} 11. Ng5
{[%clk 0:04:18.1]} 0-1

[Event "Live Chess"]
[Site "Chess.com"]
[Date "2023.05.21"]
[Round "-"]
[White "NotHarryV"]
[Black "JoshMcK"]
[Result "0-1"]
[WhiteElo "1501"]
[BlackElo "1580"]
[TimeControl "300"]
[EndTime "8:28:00 PDT"]
[Termination "JoshMcK won by resignation"]

1. d4 {[%clk 0:04:59.5]} 1... d5 {[%clk 0:04:58.5]} 2. c4 {[%clk 0:04:58.8]}
2... e6 {[%clk 0:04:57.8]} 3. Nf3 {[%clk 0:04:56.7]} 3... Nf6 {[%clk 0:04:57.3]}
4. g3 {[%clk 0:04:56.1]} 4... Nbd7 {[%clk 0:04:52.2]} 5. Bg2 {[%clk 0:04:55.4]}
5... dxc4 {[%clk 0:04:42.2]} 6. Qc2 {[%clk 0:04:53.9]} 6... c5 {[%clk
0:04:37.5]} 7. Qxc4 {[%clk 0:04:49.2]} 7... cxd4 {[%clk 0:04:34.3]} 8. Nxd4
{[%clk 0:04:48.1]} 8... Be7 {[%clk 0:04:32.5]} 9. O-O {[%clk 0:04:46.5]} 9...
O-O {[%clk 0:04:31.2]} 10. Nc3 {[%clk 0:04:38.6]} 10... Ne5 {[%clk 0:04:29.6]}
11. Qa4 {[%clk 0:04:22.6]} 11... Bd7 {[%clk 0:04:23.2]} 12. Qd1 {[%clk
0:04:21.5]} 12... Rb8 {[%clk 0:04:05.6]} 13. Bf4 {[%clk 0:04:15.2]} 13... Bd6
{[%clk 0:03:46.2]} 14. Bxe5 {[%clk 0:03:52.8]} 14... Bxe5 {[%clk 0:03:43.7]} 15.
Nf3 {[%clk 0:03:44]} 15... Bxc3 {[%clk 0:03:40.4]} 16. bxc3 {[%clk 0:03:43.9]}
16... Bc6 {[%clk 0:03:37.4]} 17. Qb3 {[%clk 0:03:34.9]} 17... Bd5 {[%clk
0:03:31.1]} 18. c4 {[%clk 0:03:34.4]} 18... Bc6 {[%clk 0:03:28]} 19. Rad1 {[%clk
0:03:31.2]} 19... Qc7 {[%clk 0:03:26]} 20. Qc2 {[%clk 0:03:18.4]} 20... Be4
{[%clk 0:03:17.5]} 21. Qc3 {[%clk 0:03:13.4]} 21... b6 {[%clk 0:02:56.7]} 22. h4
{[%clk 0:02:56.6]} 22... Bg6 {[%clk 0:02:37.8]} 23. Ne5 {[%clk 0:02:49.4]} 23...
Bh5 {[%clk 0:02:20.2]} 24. Rd4 {[%clk 0:02:31.2]} 24... Qxe5 {[%clk 0:02:05.1]}
0-1

[Event "Live Chess"]
[Site "Chess.com"]
[Date "2023.05.21"]
[Round "-"]
[White "Biranidun"]
[Black "friarnator"]
[Result "1-0"]
[WhiteElo "2520"]
[BlackElo "2026"]
[TimeControl "300"]
[EndTime "8:28:01 PDT"]
[Termination "Biranidun won by resignation"]

1. e4 {[%clk 0:04:58.9]} 1... c5 {[%clk 0:04:59.1]} 2. Nf3 {[%clk 0:04:57.9]}
2... d6 {[%clk 0:04:58.5]} 3. d4 {[%clk 0:04:57.3]} 3... cxd4 {[%clk 0:04:58.4]}
4. Nxd4 {[%clk 0:04:57.2]} 4... Nf6 {[%clk 0:04:57.5]} 5. Nc3 {[%clk 0:04:56.9]}
5... a6 {[%clk 0:04:57]} 6. Be3 {[%clk 0:04:56.5]} 6... e6 {[%clk 0:04:52.4]} 7.
f3 {[%clk 0:04:54.9]} 7... h5 {[%clk 0:04:49.8]} 8. Qd2 {[%clk 0:04:53.7]} 8...
Be7 {[%clk 0:04:49.1]} 9. a4 {[%clk 0:04:52.3]} 9... Nbd7 {[%clk 0:04:46.9]} 10.
Be2 {[%clk 0:04:51.6]} 10... Nc5 {[%clk 0:04:46.2]} 11. b4 {[%clk 0:04:48]}
11... Ncd7 {[%clk 0:04:42.8]} 12. O-O {[%clk 0:04:46.3]} 12... Qc7 {[%clk
0:04:40.3]} 13. a5 {[%clk 0:04:45.4]} 13... O-O {[%clk 0:04:35.2]} 14. Na4
{[%clk 0:04:44.8]} 14... d5 {[%clk 0:04:10.7]} 15. exd5 {[%clk 0:04:37.8]} 15...
Nxd5 {[%clk 0:04:07.2]} 16. Rab1 {[%clk 0:04:35.3]} 16... Nxe3 {[%clk
0:03:42.4]} 17. Qxe3 {[%clk 0:04:35.2]} 17... Nf6 {[%clk 0:03:41.8]} 18. c4
{[%clk 0:04:33.3]} 18... Bd7 {[%clk 0:03:37.4]} 19. Nb6 {[%clk 0:04:32.3]} 19...
Rad8 {[%clk 0:03:36.6]} 20. Rfd1 {[%clk 0:04:30.6]} 20... Bc6 {[%clk 0:03:18.6]}
21. b5 {[%clk 0:04:24.9]} 21... axb5 {[%clk 0:03:16.9]} 22. cxb5 {[%clk
0:04:24.8]} 22... Bd5 {[%clk 0:03:08.1]} 23. Rbc1 {[%clk 0:04:24.1]} 23... Qd6
{[%clk 0:02:46.5]} 24. Bc4 {[%clk 0:04:11]} 24... Bxc4 {[%clk 0:02:39.8]} 25.
Nxc4 {[%clk 0:04:09.8]} 25... Qb4 {[%clk 0:02:32.1]} 26. Qc3 {[%clk 0:03:44.3]}
26... Qxc3 {[%clk 0:02:27.4]} 27. Rxc3 {[%clk 0:03:44.2]} 27... Bc5 {[%clk
0:02:26.6]} 28. Rcd3 {[%clk 0:03:43.4]} 28... e5 {[%clk 0:02:25.4]} 29. Nxe5
{[%clk 0:03:42.1]} 29... Rd5 {[%clk 0:02:21.6]} 30. f4 {[%clk 0:03:38.1]} 30...
Rfd8 {[%clk 0:02:13.5]} 31. Nf3 {[%clk 0:03:37.2]} 31... Ne4 {[%clk 0:01:43.3]}
32. Kf1 {[%clk 0:03:29.4]} 32... Bb4 {[%clk 0:01:12.6]} 33. a6 {[%clk
0:03:20.1]} 33... bxa6 {[%clk 0:01:12.5]} 34. bxa6 {[%clk 0:03:19.7]} 34... Nc3
{[%clk 0:00:59]} 35. Ra1 {[%clk 0:03:16.8]} 35... Nb5 {[%clk 0:00:55.3]} 36. Ra4
{[%clk 0:03:13.4]} 36... Bc5 {[%clk 0:00:52.6]} 37. Nc6 {[%clk 0:02:40.5]} 37...
Rxd3 {[%clk 0:00:46.1]} 38. Nxd8 {[%clk 0:02:40]} 38... Rxd8 {[%clk 0:00:44.8]}
39. Ra5 {[%clk 0:02:38.6]} 39... Ra8 {[%clk 0:00:43.5]} 40. Rxb5 {[%clk
0:02:37.4]} 40... Be3 {[%clk 0:00:39.3]} 41. Ra5 {[%clk 0:02:32.7]} 41... Ra7
{[%clk 0:00:37.3]} 42. g3 {[%clk 0:02:31.4]} 42... f6 {[%clk 0:00:33]} 43. Ke2
{[%clk 0:02:30.7]} 43... Bb6 {[%clk 0:00:31.6]} 44. Ra2 {[%clk 0:02:28.4]} 44...
Kf7 {[%clk 0:00:31.1]} 45. Kd3 {[%clk 0:02:27.9]} 45... Ke7 {[%clk 0:00:30.5]}
46. Kc4 {[%clk 0:02:27.6]} 46... Kd6 {[%clk 0:00:29.8]} 47. Kb5 {[%clk
0:02:27.2]} 47... Be3 {[%clk 0:00:26.4]} 48. Ra3 {[%clk 0:02:26]} 48... Bf2
{[%clk 0:00:19.9]} 49. Rd3+ {[%clk 0:02:22.6]} 49... Kc7 {[%clk 0:00:18.7]} 50.
Nd2 {[%clk 0:02:21.7]} 1-0

[Event "Live Chess"]
[Site "Chess.com"]
[Date "2023.05.21"]
[Round "-"]
[White "Hacker_2009"]
[Black "ramses-IIG"]
[Result "1-0"]
[WhiteElo "1949"]
[BlackElo "873"]
[TimeControl "300"]
[EndTime "8:28:27 PDT"]
[Termination "Hacker_2009 won by resignation"]

1. d4 {[%clk 0:04:57.6]} 1... d5 {[%clk 0:04:59.9]} 2. Nf3 {[%clk 0:04:56.3]}
2... e6 {[%clk 0:04:58]} 3. e3 {[%clk 0:04:55.4]} 3... f6 {[%clk 0:04:56.3]} 4.
c4 {[%clk 0:04:54.9]} 4... Bb4+ {[%clk 0:04:49.4]} 5. Bd2 {[%clk 0:04:53.5]}
5... Bxd2+ {[%clk 0:04:47.4]} 6. Qxd2 {[%clk 0:04:51.8]} 6... Ne7 {[%clk
0:04:47.3]} 7. Nc3 {[%clk 0:04:48.8]} 7... O-O {[%clk 0:04:45.4]} 8. Be2 {[%clk
0:04:48]} 8... dxc4 {[%clk 0:04:39.8]} 9. Bxc4 {[%clk 0:04:45.9]} 9... c6 {[%clk
0:04:36.3]} 10. O-O {[%clk 0:04:42.9]} 10... Nf5 {[%clk 0:04:33]} 11. Rfd1
{[%clk 0:04:36.3]} 11... b5 {[%clk 0:04:25.8]} 12. Bd3 {[%clk 0:04:34.2]} 12...
a6 {[%clk 0:04:22.2]} 13. Qc2 {[%clk 0:04:32.3]} 13... Qe8 {[%clk 0:04:14.4]}
14. Ne2 {[%clk 0:04:27]} 14... Qh5 {[%clk 0:04:04.5]} 15. Ng3 {[%clk 0:04:23.6]}
15... Nxg3 {[%clk 0:03:48.6]} 16. hxg3 {[%clk 0:04:22.8]} 16... f5 {[%clk
0:03:40.1]} 17. Ne5 {[%clk 0:04:20.4]} 17... Qe8 {[%clk 0:03:21.9]} 18. Rac1
{[%clk 0:04:15.5]} 18... Bd7 {[%clk 0:03:15.1]} 19. Nxd7 {[%clk 0:04:11]} 19...
Qxd7 {[%clk 0:03:15]} 20. Qc5 {[%clk 0:04:06.5]} 20... Qd5 {[%clk 0:02:59.1]}
21. Be2 {[%clk 0:04:04]} 21... Qxa2 {[%clk 0:02:41.3]} 22. Rc2 {[%clk
0:04:01.1]} 22... Qd5 {[%clk 0:02:35]} 23. Bf3 {[%clk 0:03:59.6]} 23... Qxc5
{[%clk 0:02:32.6]} 24. Rxc5 {[%clk 0:03:59.5]} 24... Rc8 {[%clk 0:02:28.9]} 25.
Rdc1 {[%clk 0:03:57.1]} 25... Kf7 {[%clk 0:02:22.4]} 26. Bxc6 {[%clk 0:03:53.7]}
26... Nxc6 {[%clk 0:02:21.6]} 27. Rxc6 {[%clk 0:03:53.6]} 27... Rxc6 {[%clk
0:02:20.7]} 28. Rxc6 {[%clk 0:03:52.8]} 28... Ke7 {[%clk 0:02:15.7]} 29. Rc7+
{[%clk 0:03:51.1]} 29... Kf8 {[%clk 0:02:14.2]} 30. Kf1 {[%clk 0:03:47.5]} 30...
h6 {[%clk 0:02:10.3]} 31. Ke2 {[%clk 0:03:46.3]} 31... Kg8 {[%clk 0:02:09.4]}
32. Kd3 {[%clk 0:03:42]} 32... Kh7 {[%clk 0:02:08.1]} 33. Re7 {[%clk 0:03:40.7]}
33... Kg6 {[%clk 0:01:59.4]} 34. Rxe6+ {[%clk 0:03:39.7]} 34... Kg5 {[%clk
0:01:59.3]} 35. f4+ {[%clk 0:03:34.4]} 35... Kg4 {[%clk 0:01:57.9]} 36. Rg6+
{[%clk 0:03:33.5]} 36... Kh5 {[%clk 0:01:52.6]} 37. Rxg7 {[%clk 0:03:33]} 37...
a5 {[%clk 0:01:44.7]} 38. Rb7 {[%clk 0:03:31.8]} 38... b4 {[%clk 0:01:42.6]} 39.
d5 {[%clk 0:03:31.2]} 39... Kg4 {[%clk 0:01:40.6]} 40. Rg7+ {[%clk 0:03:28.2]}
40... Kh5 {[%clk 0:01:38.3]} 41. Kc4 {[%clk 0:03:26.6]} 41... b3 {[%clk
0:01:23.7]} 42. Kxb3 {[%clk 0:03:24.4]} 42... a4+ {[%clk 0:01:21.6]} 43. Kc4
{[%clk 0:03:22.1]} 43... Ra5 {[%clk 0:01:18.5]} 44. d6 {[%clk 0:03:20.4]} 44...
a3 {[%clk 0:01:16.6]} 45. bxa3 {[%clk 0:03:18.5]} 45... Rxa3 {[%clk 0:01:16]}
46. d7 {[%clk 0:03:18.1]} 46... Rxe3 {[%clk 0:01:15.1]} 47. d8=Q {[%clk
0:03:14.1]} 47... Rxg3 {[%clk 0:01:15]} 48. Qe8+ {[%clk 0:03:05.9]} 48... Kh4
{[%clk 0:01:13.6]} 49. Rxg3 {[%clk 0:03:04.1]} 49... Kxg3 {[%clk 0:01:11.8]} 50.
Qg6+ {[%clk 0:03:03.8]} 50... Kf2 {[%clk 0:01:09.1]} 51. Qxf5 {[%clk 0:03:01.5]}
51... Kxg2 {[%clk 0:01:09]} 52. Qh5 {[%clk 0:03:00.9]} 1-0

[Event "Live Chess"]
[Site "Chess.com"]
[Date "2023.05.21"]
[Round "-"]
[White "Duke_of_Bebington"]
[Black "hturner40"]
[Result "1-0"]
[WhiteElo "1567"]
[BlackElo "1785"]
[TimeControl "300"]
[EndTime "8:28:30 PDT"]
[Termination "Duke_of_Bebington won on time"]

1. e4 {[%clk 0:04:58.4]} 1... Nc6 {[%clk 0:04:58.5]} 2. d4 {[%clk 0:04:55.4]}
2... e5 {[%clk 0:04:56.9]} 3. d5 {[%clk 0:04:51.5]} 3... Nce7 {[%clk 0:04:54.9]}
4. Be3 {[%clk 0:04:49]} 4... Ng6 {[%clk 0:04:51.5]} 5. Bd3 {[%clk 0:04:39.2]}
5... Bb4+ {[%clk 0:04:47.3]} 6. Nd2 {[%clk 0:04:34.3]} 6... Nf6 {[%clk
0:04:22.2]} 7. Ne2 {[%clk 0:04:08.1]} 7... O-O {[%clk 0:04:17.3]} 8. f4 {[%clk
0:03:58.1]} 8... Ng4 {[%clk 0:04:14.2]} 9. Bg1 {[%clk 0:03:54.1]} 9... exf4
{[%clk 0:04:07.7]} 10. c3 {[%clk 0:03:40.9]} 10... Ba5 {[%clk 0:03:44.3]} 11. h3
{[%clk 0:03:33.9]} 11... Qh4+ {[%clk 0:03:35.3]} 12. Kf1 {[%clk 0:03:30.6]}
12... Ne3+ {[%clk 0:03:09.5]} 13. Bxe3 {[%clk 0:03:29.3]} 13... fxe3 {[%clk
0:03:08.6]} 14. Qe1 {[%clk 0:03:29.2]} 14... Qxe1+ {[%clk 0:03:06]} 15. Rxe1
{[%clk 0:03:26.7]} 15... exd2 {[%clk 0:03:05]} 16. Rd1 {[%clk 0:03:26.6]} 16...
d6 {[%clk 0:03:02.4]} 17. Rxd2 {[%clk 0:03:26.1]} 17... Ne5 {[%clk 0:03:01.1]}
18. Bc2 {[%clk 0:03:23.5]} 18... Bb6 {[%clk 0:02:59.2]} 19. Ke1 {[%clk
0:03:17.5]} 19... f5 {[%clk 0:02:57.4]} 20. exf5 {[%clk 0:03:14.9]} 20... Bxf5
{[%clk 0:02:55.4]} 21. Bxf5 {[%clk 0:03:13.9]} 21... Rxf5 {[%clk 0:02:53.3]} 22.
Ng3 {[%clk 0:03:08]} 22... Rf4 {[%clk 0:02:49.6]} 23. Kd1 {[%clk 0:03:02.1]}
23... Raf8 {[%clk 0:02:43.8]} 24. Re2 {[%clk 0:02:57.5]} 24... Nd3 {[%clk
0:02:33.4]} 25. Kc2 {[%clk 0:02:47.4]} 25... Ne5 {[%clk 0:02:23.7]} 26. Ne4
{[%clk 0:02:39.8]} 26... Rf1 {[%clk 0:01:58.9]} 27. Rxf1 {[%clk 0:02:28.2]}
27... Rxf1 {[%clk 0:01:57.1]} 28. Ng5 {[%clk 0:02:23.1]} 28... Rf2 {[%clk
0:01:52.7]} 29. Rxf2 {[%clk 0:02:21.1]} 29... Bxf2 {[%clk 0:01:51.1]} 30. Ne6
{[%clk 0:02:21]} 30... Bb6 {[%clk 0:01:49]} 31. a4 {[%clk 0:02:19.1]} 31... a5
{[%clk 0:01:46.2]} 32. b4 {[%clk 0:02:16.9]} 32... h6 {[%clk 0:01:41.4]} 33. Kd2
{[%clk 0:02:08.3]} 33... Kf7 {[%clk 0:01:38.4]} 34. Ke2 {[%clk 0:02:01]} 34...
c6 {[%clk 0:01:36.2]} 35. Nf4 {[%clk 0:01:54]} 35... Ng6 {[%clk 0:01:23.3]} 36.
Nd3 {[%clk 0:01:47.7]} 36... cxd5 {[%clk 0:01:18.4]} 37. g3 {[%clk 0:01:42.7]}
37... Ne5 {[%clk 0:01:15.1]} 38. Nf4 {[%clk 0:01:41.6]} 38... d4 {[%clk
0:01:11.2]} 39. cxd4 {[%clk 0:01:38.2]} 39... Bxd4 {[%clk 0:01:09.8]} 40. Nd5
{[%clk 0:01:36.2]} 40... axb4 {[%clk 0:01:03.8]} 41. Nxb4 {[%clk 0:01:35]} 41...
Bc5 {[%clk 0:00:59.1]} 42. Nd5 {[%clk 0:01:32.3]} 42... b6 {[%clk 0:00:54.8]}
43. g4 {[%clk 0:01:26.6]} 43... g5 {[%clk 0:00:51.5]} 44. Nc3 {[%clk 0:01:16.8]}
44... Nc6 {[%clk 0:00:40.1]} 45. Kd3 {[%clk 0:01:03.8]} 45... Ne5+ {[%clk
0:00:36.5]} 46. Ke4 {[%clk 0:01:01.1]} 46... Ke6 {[%clk 0:00:35.3]} 47. Nd5
{[%clk 0:00:56.4]} 47... Nc6 {[%clk 0:00:32.7]} 48. Nc7+ {[%clk 0:00:53.1]}
48... Kd7 {[%clk 0:00:30.6]} 49. Nb5 {[%clk 0:00:52]} 49... Nb4 {[%clk
0:00:28.2]} 50. Kf5 {[%clk 0:00:46.7]} 50... Bf2 {[%clk 0:00:23.7]} 51. Kg6
{[%clk 0:00:45.2]} 51... Kc6 {[%clk 0:00:19.8]} 52. Kxh6 {[%clk 0:00:43]} 52...
Be3 {[%clk 0:00:18.7]} 53. Kg6 {[%clk 0:00:42.2]} 53... d5 {[%clk 0:00:15.1]}
54. Kf5 {[%clk 0:00:41.5]} 54... d4 {[%clk 0:00:13.1]} 55. Ke4 {[%clk
0:00:40.5]} 55... Kc5 {[%clk 0:00:07.5]} 56. Na3 {[%clk 0:00:33.9]} 56... Nd5
{[%clk 0:00:05.2]} 57. Nb1 {[%clk 0:00:30.5]} 1-0

[Event "Live Chess"]
[Site "Chess.com"]
[Date "2023.05.21"]
[Round "-"]
[White "onemoretime1975"]
[Black "djw60"]
[Result "0-1"]
[WhiteElo "1837"]
[BlackElo "2173"]
[TimeControl "300"]
[EndTime "8:28:32 PDT"]
[Termination "djw60 won by checkmate"]

1. e4 {[%clk 0:04:57.5]} 1... e6 {[%clk 0:04:58.7]} 2. d4 {[%clk 0:04:55.6]}
2... d5 {[%clk 0:04:58.2]} 3. exd5 {[%clk 0:04:54.1]} 3... exd5 {[%clk
0:04:57.2]} 4. Nf3 {[%clk 0:04:51.6]} 4... Nf6 {[%clk 0:04:56.3]} 5. Bd3 {[%clk
0:04:50.3]} 5... c5 {[%clk 0:04:54.8]} 6. dxc5 {[%clk 0:04:47]} 6... Bxc5 {[%clk
0:04:53.1]} 7. c3 {[%clk 0:04:45.3]} 7... O-O {[%clk 0:04:49.9]} 8. O-O {[%clk
0:04:43.8]} 8... Bg4 {[%clk 0:04:48.2]} 9. h3 {[%clk 0:04:41.9]} 9... Bh5 {[%clk
0:04:46.7]} 10. Nbd2 {[%clk 0:04:39.9]} 10... Nc6 {[%clk 0:04:43.4]} 11. Nb3
{[%clk 0:04:38]} 11... Bb6 {[%clk 0:04:41.8]} 12. Be2 {[%clk 0:04:36.6]} 12...
Ne4 {[%clk 0:04:37.7]} 13. Nbd4 {[%clk 0:04:28.4]} 13... a6 {[%clk 0:04:30.4]}
14. Be3 {[%clk 0:04:25.9]} 14... Bc7 {[%clk 0:04:27.5]} 15. Nxc6 {[%clk
0:04:20.7]} 15... bxc6 {[%clk 0:04:26]} 16. Nd4 {[%clk 0:04:09]} 16... Qd6
{[%clk 0:04:23.5]} 17. f4 {[%clk 0:03:53.2]} 17... Bxe2 {[%clk 0:04:15.8]} 18.
Qxe2 {[%clk 0:03:50.2]} 18... Rfe8 {[%clk 0:04:12.8]} 19. Qf3 {[%clk 0:03:27.7]}
19... Rab8 {[%clk 0:03:41.3]} 20. Rab1 {[%clk 0:03:15.9]} 20... c5 {[%clk
0:03:38.1]} 21. Nb3 {[%clk 0:02:46.7]} 21... Bb6 {[%clk 0:03:34.4]} 22. Rfd1
{[%clk 0:02:33.2]} 22... Rbd8 {[%clk 0:03:29.2]} 23. c4 {[%clk 0:01:59.4]} 23...
d4 {[%clk 0:03:23.1]} 24. Bf2 {[%clk 0:01:50.7]} 24... Bc7 {[%clk 0:03:18.8]}
25. g3 {[%clk 0:01:41]} 25... f5 {[%clk 0:03:16.7]} 26. Nd2 {[%clk 0:01:33.8]}
26... Kh8 {[%clk 0:03:11.9]} 27. Kg2 {[%clk 0:01:16.3]} 27... Re7 {[%clk
0:02:50.5]} 28. Nf1 {[%clk 0:01:10.8]} 28... Rde8 {[%clk 0:02:45.3]} 29. Re1
{[%clk 0:01:08.2]} 29... Ba5 {[%clk 0:02:04.3]} 30. Re2 {[%clk 0:01:04.6]} 30...
Nxf2 {[%clk 0:01:54.1]} 31. Rxf2 {[%clk 0:01:01.5]} 31... Be1 {[%clk 0:01:45.5]}
32. Rc2 {[%clk 0:00:58]} 32... d3 {[%clk 0:01:35.4]} 33. Rcc1 {[%clk 0:00:36.8]}
33... d2 {[%clk 0:01:29.9]} 34. Rd1 {[%clk 0:00:34.6]} 34... Re2+ {[%clk
0:01:26.8]} 35. Kh1 {[%clk 0:00:32.5]} 35... Rf2 {[%clk 0:01:16.9]} 36. Rxe1
{[%clk 0:00:27.8]} 36... dxe1=Q {[%clk 0:01:07.7]} 37. Rxe1 {[%clk 0:00:25.7]}
37... Rxf1+ {[%clk 0:00:49.5]} 38. Rxf1 {[%clk 0:00:18.3]} 38... h6 {[%clk
0:00:44.4]} 39. Rd1 {[%clk 0:00:16.5]} 39... Qf6 {[%clk 0:00:39.6]} 40. b3
{[%clk 0:00:14.4]} 40... Qb2 {[%clk 0:00:36.3]} 41. Qg2 {[%clk 0:00:11.2]} 41...
Re2 {[%clk 0:00:32.9]} 42. Qg1 {[%clk 0:00:08.6]} 42... Qc2 {[%clk 0:00:26.3]}
43. Rc1 {[%clk 0:00:06.6]} 43... Qe4+ {[%clk 0:00:25.3]} 44. Qg2 {[%clk
0:00:03.8]} 44... Qxg2# {[%clk 0:00:23.9]} 0-1

[Event "Live Chess"]
[Site "Chess.com"]
[Date "2023.05.21"]
[Round "-"]
[White "Mechhead7"]
[Black "FlyingChessKestrel13"]
[Result "0-1"]
[WhiteElo "1775"]
[BlackElo "2063"]
[TimeControl "300"]
[EndTime "8:28:33 PDT"]
[Termination "FlyingChessKestrel13 won by resignation"]

1. e4 {[%clk 0:04:58.7]} 1... c6 {[%clk 0:04:57.8]} 2. d4 {[%clk 0:04:57.5]}
2... d5 {[%clk 0:04:57]} 3. exd5 {[%clk 0:04:57.4]} 3... cxd5 {[%clk 0:04:56]}
4. c4 {[%clk 0:04:56.6]} 4... Nf6 {[%clk 0:04:54.8]} 5. Nc3 {[%clk 0:04:55.8]}
5... Bf5 {[%clk 0:04:53.4]} 6. Nf3 {[%clk 0:04:51.4]} 6... Nc6 {[%clk
0:04:51.6]} 7. Bg5 {[%clk 0:04:47.9]} 7... e6 {[%clk 0:04:50.3]} 8. c5 {[%clk
0:04:28.7]} 8... Bg4 {[%clk 0:04:46.1]} 9. Be2 {[%clk 0:04:22.2]} 9... Be7
{[%clk 0:04:44.5]} 10. O-O {[%clk 0:04:07.7]} 10... O-O {[%clk 0:04:42.4]} 11.
a3 {[%clk 0:04:03.7]} 11... a5 {[%clk 0:04:35.4]} 12. h3 {[%clk 0:03:54.2]}
12... Bxf3 {[%clk 0:04:29]} 13. Bxf3 {[%clk 0:03:54.1]} 13... b6 {[%clk
0:04:23]} 14. Qa4 {[%clk 0:03:47.1]} 14... Qc7 {[%clk 0:04:06.8]} 15. Nb5 {[%clk
0:03:42.3]} 15... Qb7 {[%clk 0:04:04.9]} 16. Rac1 {[%clk 0:03:34.8]} 16... bxc5
{[%clk 0:04:02.9]} 17. dxc5 {[%clk 0:03:30.9]} 17... Rfb8 {[%clk 0:04:01.4]} 18.
Be2 {[%clk 0:03:29.4]} 18... Ne4 {[%clk 0:03:53.3]} 19. Bf4 {[%clk 0:03:21.3]}
19... Nxc5 {[%clk 0:03:49.3]} 20. Qc2 {[%clk 0:03:15.2]} 20... e5 {[%clk
0:03:45.8]} 21. Bg3 {[%clk 0:03:04.1]} 21... f6 {[%clk 0:03:28.6]} 22. Rfd1
{[%clk 0:03:00.7]} 22... d4 {[%clk 0:03:26.1]} 23. Bc4+ {[%clk 0:02:56.8]} 23...
Kh8 {[%clk 0:03:24.5]} 24. a4 {[%clk 0:02:35.8]} 24... Nb4 {[%clk 0:03:21.6]}
25. Qf5 {[%clk 0:02:29.6]} 25... Qc8 {[%clk 0:03:04.8]} 26. Qh5 {[%clk
0:02:17.1]} 26... Qe8 {[%clk 0:02:59.9]} 27. Bf7 {[%clk 0:02:11.6]} 27... Qf8
{[%clk 0:02:58.5]} 28. Nc7 {[%clk 0:02:00.4]} 28... Ra7 {[%clk 0:02:50.1]} 29.
Bg6 {[%clk 0:01:50.6]} 29... h6 {[%clk 0:02:43.4]} 30. Nb5 {[%clk 0:01:10.3]}
30... Rab7 {[%clk 0:02:36.3]} 31. Rxc5 {[%clk 0:01:05.9]} 31... Bxc5 {[%clk
0:02:33]} 32. Be4 {[%clk 0:01:05.1]} 32... Rf7 {[%clk 0:02:16.8]} 33. Qg6 {[%clk
0:00:48.5]} 33... f5 {[%clk 0:02:14.6]} 34. Bb1 {[%clk 0:00:44.9]} 34... Rf6
{[%clk 0:02:12.7]} 35. Qh5 {[%clk 0:00:41.1]} 35... f4 {[%clk 0:02:09.4]} 36.
Bh4 {[%clk 0:00:39.7]} 36... d3 {[%clk 0:02:05.6]} 37. Bxf6 {[%clk 0:00:33.5]}
37... Qxf6 {[%clk 0:02:03.6]} 38. Bxd3 {[%clk 0:00:31]} 38... Rd8 {[%clk
0:01:53.3]} 39. Qe2 {[%clk 0:00:23.3]} 39... Qh4 {[%clk 0:01:32.4]} 40. Nc3
{[%clk 0:00:21.3]} 40... Nxd3 {[%clk 0:01:26.8]} 41. g3 {[%clk 0:00:19.6]} 41...
Qxg3+ {[%clk 0:01:23.3]} 42. Kf1 {[%clk 0:00:16.5]} 42... Qxh3+ {[%clk
0:01:18.9]} 43. Kg1 {[%clk 0:00:15.6]} 43... Bxf2+ {[%clk 0:01:07.3]} 44. Qxf2
{[%clk 0:00:14.4]} 44... Nxf2 {[%clk 0:01:05.6]} 45. Kxf2 {[%clk 0:00:14.3]}
45... Rxd1 {[%clk 0:01:03.1]} 0-1